fUSD/lending_fUSD_20240422
["ID","MTS","AMOUNT","RATE_DAILY","PERIOD"]
[323188442,1713796241565,-500.0,0.00013698,2]
[323188443,1713796241576,-500.0,0.00013698,2]
[323188444,1713796241586,-516.95,0.00013698,2]
[323188445,1713796241595,-500.0,0.00013698,2]
[323188446,1713796241603,-500.0,0.00013698,2]
[323188447,1713796241613,-652.61,0.00013698,2]
[323188448,1713796241622,-500.0,0.00013698,2]
[323188449,1713796241631,-500.0,0.00013698,2]
[323188450,1713796241640,-636.54,0.00013698,2]
[323188451,1713796241649,-500.0,0.00013698,2]
[323188452,1713796241658,-500.0,0.00013698,2]
[323188453,1713796241668,-581.34,0.00013698,2]
[323188454,1713796241677,-500.0,0.00013698,2]
[323188455,1713796241687,-500.0,0.00013698,2]
[323188456,1713796241696,-166.62686169,0.00013698,2]
[323188457,1713796241705,-500.0,0.00013698,2]
[323188458,1713796241715,-500.0,0.00013698,2]
[323188459,1713796241724,-1223.42,0.00013698,2]
[323188460,1713796241734,-563.68,0.00013698,2]
[323188461,1713796241744,-500.0,0.00013698,2]
[323188462,1713796241753,-500.0,0.00013698,2]
[323188463,1713796241762,-500.0,0.00013698,2]
[323188464,1713796241771,-602.73,0.00013698,2]
[323188465,1713796241780,-821.8,0.00013698,2]
[323188466,1713796241789,-500.0,0.00013698,2]
[323188467,1713796241798,-719.37,0.00013698,2]
[323188468,1713796241807,-500.0,0.00013698,2]
[323188469,1713796241817,-621.21,0.00013698,2]
[323188470,1713796241830,-576.39031222,0.00013698,2]
[323188471,1713796241839,-562.1,0.00013698,2]
[323188472,1713796241848,-734.56,0.00013698,2]
[323188473,1713796241857,-510.88,0.00013698,2]
[323188474,1713796241866,-500.0,0.00013698,2]
[323188475,1713796241875,-625.62,0.00013698,2]
[323188476,1713796241884,-628.83,0.00013698,2]
[323188477,1713796241893,-500.0,0.00013698,2]
[323188478,1713796241903,-500.0,0.00013698,2]
[323188479,1713796241912,-511.54,0.00013698,2]
[323188480,1713796241922,-500.0,0.00013698,2]
[323188481,1713796241931,-740.77,0.00013698,2]
[323188482,1713796241941,-1046.12,0.00013698,2]
[323188483,1713796241952,-814.03,0.00013698,2]
[323188484,1713796241961,-738.56,0.00013698,2]
[323188485,1713796241970,-500.0,0.00013698,2]
[323188486,1713796241979,-500.0,0.00013698,2]
[323188487,1713796241989,-500.0,0.00013698,2]
[323188488,1713796241999,-1545.48,0.00013698,2]
[323188489,1713796242010,-500.0,0.00013698,2]
[323188490,1713796242019,-500.0,0.00013698,2]
[323188491,1713796242029,-500.0,0.00013698,2]
[323188492,1713796242038,-500.0,0.00013698,2]
[323188493,1713796242047,-500.0,0.00013698,2]
[323188494,1713796242057,-500.0,0.00013698,2]
[323188495,1713796242066,-662.22,0.00013698,2]
[323188496,1713796242079,-500.0,0.00013698,2]
[323188497,1713796242088,-500.0,0.00013698,2]
[323188498,1713796242098,-532.81,0.00013698,2]
[323188499,1713796242107,-500.0,0.00013698,2]
[323188500,1713796242117,-1276.81,0.00013698,2]
[323188501,1713796242127,-590.19,0.00013698,2]
[323188502,1713796242137,-500.0,0.00013698,2]
[323188503,1713796242146,-897.76,0.00013698,2]
[323188504,1713796242155,-500.0,0.00013698,2]
[323188505,1713796242165,-1133.16,0.00013698,2]
[323188506,1713796242174,-668.49,0.00013698,2]
[323188507,1713796242183,-651.2,0.00013698,2]
[323188508,1713796242192,-711.0,0.00013698,2]
[323188509,1713796242204,-229.18968656,0.00013698,2]
[323188510,1713796242213,-500.0,0.00013698,2]
[323188511,1713796242223,-918.55,0.00013698,2]
[323188512,1713796242231,-500.0,0.00013698,2]
[323188513,1713796242240,-566.0,0.00013698,2]
[323188514,1713796242251,-500.0,0.00013698,2]
[323188515,1713796242260,-500.0,0.00013698,2]
[323188516,1713796242270,-607.78,0.00013698,2]
[323188517,1713796242282,-500.0,0.00013698,2]
[323188518,1713796242293,-840.92,0.00013698,2]
[323188519,1713796242304,-560.26,0.00013698,2]
[323188520,1713796242314,-502.77920807,0.00013698,2]
[323188521,1713796242325,-667.1,0.00013698,2]
[323188522,1713796242334,-1089.73,0.00013698,2]
[323188523,1713796242343,-500.0,0.00013698,2]
[323188524,1713796242352,-500.0,0.00013698,2]
[323188525,1713796242360,-500.0,0.00013698,2]
[323188526,1713796242369,-586.42067035,0.00013698,2]
[323188527,1713796242379,-500.0,0.00013698,2]
[323188528,1713796242388,-500.0,0.00013698,2]
[323188529,1713796242397,-500.0,0.00013698,2]
[323188530,1713796242406,-378.58069205,0.00013698,2]
[323188531,1713796242415,-500.0,0.00013698,2]
[323188532,1713796242425,-236.86132489,0.00013698,2]
[323188533,1713796242434,-1091.75,0.00013698,2]
[323188534,1713796242443,-905.97,0.00013698,2]
[323188535,1713796242452,-500.0,0.00013698,2]
[323188536,1713796242461,-1495.38,0.00013698,2]
[323188537,1713796242471,-500.0,0.00013698,2]
[323188538,1713796242491,-500.0,0.00013698,2]
[323188539,1713796242509,-841.65,0.00013698,2]
[323188540,1713796242519,-500.0,0.00013698,2]
[323188541,1713796242529,-500.0,0.00013698,2]
[323188542,1713796242538,-500.0,0.00013698,2]
[323188543,1713796242547,-1239.72,0.00013698,2]
[323188544,1713796242556,-500.0,0.00013698,2]
[323188545,1713796242566,-500.0,0.00013698,2]
[323188546,1713796242580,-784.01,0.00013698,2]
[323188547,1713796242589,-154.01511557,0.00013698,2]
[323188548,1713796242598,-226.22509136,0.00013698,2]
[323188549,1713796242607,-717.02,0.00013698,2]
[323188550,1713796242616,-304.0301095,0.00013698,2]
[323188551,1713796242624,-500.0,0.00013698,2]
[323188552,1713796242633,-500.0,0.00013698,2]
[323188553,1713796242642,-1216.91,0.00013698,2]
[323188554,1713796242651,-1745.95,0.00013698,2]
[323188555,1713796242660,-500.0,0.00013698,2]
[323188556,1713796242670,-987.82,0.00013698,2]
[323188557,1713796242679,-500.0,0.00013698,2]
[323188558,1713796242687,-734.92,0.00013698,2]
[323188559,1713796242697,-699.61,0.00013698,2]
[323188560,1713796242706,-500.0,0.00013698,2]
[323188561,1713796242715,-754.44,0.00013698,2]
[323188562,1713796242724,-500.0,0.00013698,2]
[323188563,1713796242734,-942.64,0.00013698,2]
[323188564,1713796242743,-500.0,0.00013698,2]
[323188565,1713796242752,-1022.77,0.00013698,2]
[323188566,1713796242761,-500.0,0.00013698,2]
[323188567,1713796242770,-656.56,0.00013698,2]
[323188568,1713796242779,-536.28,0.00013698,2]
[323188569,1713796242787,-500.0,0.00013698,2]
[323188570,1713796242797,-603.44,0.00013698,2]
[323188571,1713796242806,-500.0,0.00013698,2]
[323188572,1713796242815,-682.19,0.00013698,2]
[323188574,1713796242828,-1056.03,0.00013698,2]
[323188575,1713796242837,-500.0,0.00013698,2]
[323188576,1713796242846,-500.0,0.00013698,2]
[323188577,1713796242855,-869.69,0.00013698,2]
[323188578,1713796242864,-500.0,0.00013698,2]
[323188579,1713796242875,-1139.0,0.00013698,2]
[323188581,1713796242884,-226.0755973,0.00013698,2]
[323188582,1713796242893,-683.19,0.00013698,2]
[323188583,1713796242902,-650.32,0.00013698,2]
[323188584,1713796242911,-1497.34,0.00013698,2]
[323188585,1713796242920,-500.0,0.00013698,2]
[323188586,1713796242930,-500.0,0.00013698,2]
[323188587,1713796242940,-500.0,0.00013698,2]
[323188588,1713796242950,-500.0,0.00013698,2]
[323188589,1713796242960,-606.56,0.00013698,2]
[323188590,1713796242970,-969.07,0.00013698,2]
[323188591,1713796242980,-1251.17,0.00013698,2]
[323188592,1713796242989,-1605.13,0.00013698,2]
[323188593,1713796242998,-500.0,0.00013698,2]
[323188594,1713796243008,-500.0,0.00013698,2]
[323188595,1713796243017,-500.0,0.00013698,2]
[323188596,1713796243027,-1255.29,0.00013698,2]
[323188598,1713796243037,-500.0,0.00013698,2]
[323188599,1713796243046,-640.69,0.00013698,2]
[323188600,1713796243055,-762.75,0.00013698,2]
[323188601,1713796243064,-687.84,0.00013698,2]
[323188602,1713796243080,-598.69,0.00013698,2]
[323188603,1713796243090,-500.0,0.00013698,2]
[323188604,1713796243099,-500.0,0.00013698,2]
[323188605,1713796243108,-500.0,0.00013698,2]
[323188606,1713796243118,-500.0,0.00013698,2]
[323188607,1713796243127,-734.07,0.00013698,2]
[323188608,1713796243137,-520.13,0.00013698,2]
[323188609,1713796243146,-500.0,0.00013698,2]
[323188610,1713796243155,-970.66,0.00013698,2]
[323188611,1713796243164,-500.0,0.00013698,2]
[323188612,1713796243174,-500.0,0.00013698,2]
[323188613,1713796243183,-833.8,0.00013698,2]
[323188614,1713796243192,-500.0,0.00013698,2]
[323188615,1713796243203,-500.0,0.00013698,2]
[323188616,1713796243212,-500.0,0.00013698,2]
[323188617,1713796243222,-500.0,0.00013698,2]
[323188618,1713796243231,-500.0,0.00013698,2]
[323188619,1713796243240,-500.0,0.00013698,2]
[323188620,1713796243249,-500.0,0.00013698,2]
[323188621,1713796243259,-868.65,0.00013698,2]
[323188622,1713796243268,-1270.72,0.00013698,2]
[323188623,1713796243278,-859.22,0.00013698,2]
[323188624,1713796243287,-500.0,0.00013698,2]
[323188625,1713796243296,-500.0,0.00013698,2]
[323188626,1713796243305,-962.32,0.00013698,2]
[323188627,1713796243314,-500.0,0.00013698,2]
[323188628,1713796243329,-500.0,0.00013698,2]
[323188629,1713796243338,-500.0,0.00013698,2]
[323188630,1713796243348,-519.66,0.00013698,2]
[323188631,1713796243357,-764.76,0.00013698,2]
[323188632,1713796243366,-500.0,0.00013698,2]
[323188633,1713796243375,-500.0,0.00013698,2]
[323188634,1713796243384,-500.0,0.00013698,2]
[323188635,1713796243393,-500.0,0.00013698,2]
[323188636,1713796243403,-500.0,0.00013698,2]
[323188637,1713796243415,-1118.13,0.00013698,2]
[323188638,1713796243424,-1031.56,0.00013698,2]
[323188639,1713796243433,-500.0,0.00013698,2]
[323188640,1713796243443,-500.0,0.00013698,2]
[323188641,1713796243453,-1019.28,0.00013698,2]
[323188642,1713796243463,-1682.51,0.00013698,2]
[323188643,1713796243472,-1621.1,0.00013698,2]
[323188644,1713796243482,-500.0,0.00013698,2]
[323188645,1713796243491,-500.0,0.00013698,2]
[323188646,1713796243500,-195.05,0.00013698,2]
[323188647,1713796243509,-563.58,0.00013698,2]
[323188649,1713796243519,-500.0,0.00013698,2]
[323188650,1713796243528,-500.0,0.00013698,2]
[323188652,1713796243537,-500.0,0.00013698,2]
[323188653,1713796243546,-500.0,0.00013698,2]
[323188654,1713796243555,-500.0,0.00013698,2]
[323188655,1713796243565,-1205.2,0.00013698,2]
[323188656,1713796243580,-500.0,0.00013698,2]
[323188657,1713796243589,-1556.36,0.00013698,2]
[323188658,1713796243597,-531.23,0.00013698,2]
[323188659,1713796243607,-1785.02,0.00013698,2]
[323188660,1713796243615,-500.0,0.00013698,2]
[323188661,1713796243624,-1043.75,0.00013698,2]
[323188662,1713796243634,-500.0,0.00013698,2]
[323188665,1713796243642,-1668.14,0.00013698,2]
[323188666,1713796243651,-500.0,0.00013698,2]
[323188668,1713796243660,-500.0,0.00013698,2]
[323188670,1713796243669,-500.0,0.00013698,2]
[323188671,1713796243678,-500.0,0.00013698,2]
[323188672,1713796243687,-970.18,0.00013698,2]
[323188673,1713796243694,-381.06622426,0.00013698,2]
[323188674,1713796243702,-719.58,0.00013698,2]
[323188675,1713796243710,-500.0,0.00013698,2]
[323188676,1713796243719,-500.0,0.00013698,2]
[323188677,1713796243727,-750.78,0.00013698,2]
[323188678,1713796243735,-500.0,0.00013698,2]
[323188679,1713796243743,-500.0,0.00013698,2]
[323188680,1713796243751,-500.0,0.00013698,2]
[323188681,1713796243759,-1007.84,0.00013698,2]
[323188682,1713796243767,-500.0,0.00013698,2]
[323188683,1713796243776,-500.0,0.00013698,2]
[323188684,1713796243784,-681.96,0.00013698,2]
[323188685,1713796243793,-536.99,0.00013698,2]
[323188686,1713796243801,-500.0,0.00013698,2]
[323188687,1713796243810,-500.0,0.00013698,2]
[323188688,1713796243818,-1457.06,0.00013698,2]
[323188689,1713796243830,-828.62,0.00013698,2]
[323188690,1713796243839,-709.57,0.00013698,2]
[323188691,1713796243848,-1592.02,0.00013698,2]
[323188692,1713796243857,-907.31,0.00013698,2]
[323188693,1713796243864,-500.0,0.00013698,2]
[323188694,1713796243873,-1262.34,0.00013698,2]
[323188695,1713796243883,-500.0,0.00013698,2]
[323188696,1713796243892,-500.0,0.00013698,2]
[323188697,1713796243901,-785.03,0.00013698,2]
[323188698,1713796243910,-500.0,0.00013698,2]
[323188699,1713796243919,-1328.87,0.00013698,2]
[323188700,1713796243929,-620.76,0.00013698,2]
[323188701,1713796243938,-622.61,0.00013698,2]
[323188702,1713796243947,-500.0,0.00013698,2]
[323188703,1713796243957,-554.0,0.00013698,2]
[323188704,1713796243966,-2843.11,0.00013698,2]
[323188705,1713796243976,-1381.06,0.00013698,2]
[323188706,1713796243985,-2613.26,0.00013698,2]
[323188707,1713796243995,-500.0,0.00013698,2]
[323188708,1713796244004,-500.0,0.00013698,2]
[323188709,1713796244014,-500.0,0.00013698,2]
[323188710,1713796244023,-500.0,0.00013698,2]
[323188711,1713796244032,-1174.89,0.00013698,2]
[323188712,1713796244042,-439.74788517,0.00013698,2]
[323188713,1713796244051,-1045.85,0.00013698,2]
[323188714,1713796244061,-500.0,0.00013698,2]
[323188715,1713796244074,-1487.11,0.00013698,2]
[323188716,1713796244083,-678.06,0.00013698,2]
[323188717,1713796244093,-1347.63,0.00013698,2]
[323188718,1713796244103,-500.0,0.00013698,2]
[323188719,1713796244112,-677.11,0.00013698,2]
[323188720,1713796244122,-1455.53,0.00013698,2]
[323188721,1713796244131,-500.0,0.00013698,2]
[323188722,1713796244141,-500.0,0.00013698,2]
[323188723,1713796244150,-623.87,0.00013698,2]
[323188724,1713796244160,-500.0,0.00013698,2]
[323188725,1713796244170,-1793.29,0.00013698,2]
[323188726,1713796244179,-520.13887348,0.00013698,2]
[323188727,1713796244189,-500.0,0.00013698,2]
[323188728,1713796244200,-500.0,0.00013698,2]
[323188729,1713796244209,-500.0,0.00013698,2]
[323188730,1713796244218,-2319.07,0.00013698,2]
[323188731,1713796244228,-2128.86,0.00013698,2]
[323188732,1713796244238,-500.0,0.00013698,2]
[323188733,1713796244247,-884.48,0.00013698,2]
[323188734,1713796244257,-500.0,0.00013698,2]
[323188735,1713796244265,-777.88,0.00013698,2]
[323188736,1713796244275,-500.0,0.00013698,2]
[323188737,1713796244284,-500.0,0.00013698,2]
[323188738,1713796244293,-3036.92,0.00013698,2]
[323188739,1713796244302,-500.0,0.00013698,2]
[323188740,1713796244312,-500.0,0.00013698,2]
[323188741,1713796244322,-1888.19,0.00013698,2]
[323188742,1713796244331,-744.84,0.00013698,2]
[323188743,1713796244340,-1411.7,0.00013698,2]
[323188744,1713796244349,-1782.21,0.00013698,2]
[323188745,1713796244359,-593.01,0.00013698,2]
[323188746,1713796244368,-500.0,0.00013698,2]
[323188747,1713796244377,-500.0,0.00013698,2]
[323188748,1713796244386,-500.0,0.00013698,2]
[323188749,1713796244395,-512.5,0.00013698,2]
[323188750,1713796244404,-903.61,0.00013698,2]
[323188751,1713796244414,-1232.69,0.00013698,2]
[323188752,1713796244423,-738.81,0.00013698,2]
[323188753,1713796244433,-800.07,0.00013698,2]
[323188754,1713796244443,-1836.22,0.00013698,2]
[323188755,1713796244451,-617.01,0.00013698,2]
[323188756,1713796244460,-2065.54,0.00013698,2]
[323188757,1713796244469,-1467.16,0.00013698,2]
[323188758,1713796244478,-3430.21,0.00013698,2]
[323188759,1713796244487,-2606.04,0.00013698,2]
[323188760,1713796244497,-500.0,0.00013698,2]
[323188761,1713796244506,-500.0,0.00013698,2]
[323188762,1713796244515,-865.7,0.00013698,2]
[323188763,1713796244524,-500.0,0.00013698,2]
[323188764,1713796244534,-500.0,0.00013698,2]
[323188765,1713796244543,-981.7,0.00013698,2]
[323188766,1713796244552,-500.0,0.00013698,2]
[323188767,1713796244561,-500.0,0.00013698,2]
[323188768,1713796244573,-2336.68,0.00013698,2]
[323188769,1713796244582,-1000.0,0.00013698,2]
[323188770,1713796244591,-2875.79,0.00013698,2]
[323188771,1713796244601,-1564.6,0.00013698,2]
[323188772,1713796244610,-500.0,0.00013698,2]
[323188773,1713796244619,-842.2,0.00013698,2]
[323188774,1713796244628,-847.67,0.00013698,2]
[323188775,1713796244637,-1742.61,0.00013698,2]
[323188776,1713796244646,-2092.84,0.00013698,2]
[323188777,1713796244655,-2368.06,0.00013698,2]
[323188778,1713796244665,-500.0,0.00013698,2]
[323188779,1713796244675,-500.0,0.00013698,2]
[323188780,1713796244684,-500.0,0.00013698,2]
[323188781,1713796244693,-500.0,0.00013698,2]
[323188782,1713796244702,-500.0,0.00013698,2]
[323188783,1713796244711,-893.48,0.00013698,2]
[323188784,1713796244720,-500.0,0.00013698,2]
[323188785,1713796244729,-500.0,0.00013698,2]
[323188786,1713796244739,-500.0,0.00013698,2]
[323188787,1713796244748,-2598.28,0.00013698,2]
[323188788,1713796244757,-965.64,0.00013698,2]
[323188789,1713796244766,-1115.56,0.00013698,2]
[323188790,1713796244776,-771.86,0.00013698,2]
[323188791,1713796244785,-500.0,0.00013698,2]
[323188792,1713796244794,-1415.77,0.00013698,2]
[323188793,1713796244803,-929.36,0.00013698,2]
[323188794,1713796244812,-1475.41,0.00013698,2]
[323188795,1713796244822,-573.2,0.00013698,2]
[323188796,1713796244831,-500.0,0.00013698,2]
[323188797,1713796244841,-500.0,0.00013698,2]
[323188798,1713796244850,-500.0,0.00013698,2]
[323188799,1713796244858,-500.0,0.00013698,2]
[323188800,1713796244868,-500.0,0.00013698,2]
[323188801,1713796244877,-500.0,0.00013698,2]
[323188802,1713796244886,-926.58,0.00013698,2]
[323188803,1713796244895,-500.0,0.00013698,2]
[323188804,1713796244905,-1625.35,0.00013698,2]
[323188805,1713796244914,-721.22,0.00013698,2]
[323188806,1713796244924,-623.15,0.00013698,2]
[323188807,1713796244933,-708.2,0.00013698,2]
[323188808,1713796244942,-816.49,0.00013698,2]
[323188809,1713796244951,-926.95,0.00013698,2]
[323188810,1713796244961,-1407.23,0.00013698,2]
[323188811,1713796244970,-932.59,0.00013698,2]
[323188812,1713796244979,-1355.07,0.00013698,2]
[323188813,1713796244989,-1338.43,0.00013698,2]
[323188814,1713796244998,-500.0,0.00013698,2]
[323188815,1713796245007,-500.0,0.00013698,2]
[323188816,1713796245016,-500.0,0.00013698,2]
[323188817,1713796245025,-680.36,0.00013698,2]
[323188818,1713796245034,-1745.81,0.00013698,2]
[323188819,1713796245043,-753.55,0.00013698,2]
[323188820,1713796245052,-500.0,0.00013698,2]
[323188821,1713796245061,-795.51,0.00013698,2]
[323188822,1713796245072,-822.31,0.00013698,2]
[323188823,1713796245081,-1458.25,0.00013698,2]
[323188824,1713796245090,-500.0,0.00013698,2]
[323188825,1713796245100,-500.0,0.00013698,2]
[323188826,1713796245109,-500.0,0.00013698,2]
[323188827,1713796245118,-2180.88,0.00013698,2]
[323188828,1713796245128,-500.0,0.00013698,2]
[323188829,1713796245137,-766.57,0.00013698,2]
[323188830,1713796245146,-500.0,0.00013698,2]
[323188831,1713796245155,-827.76,0.00013698,2]
[323188832,1713796245165,-500.0,0.00013698,2]
[323188833,1713796245173,-1150.8,0.00013698,2]
[323188834,1713796245183,-1166.67,0.00013698,2]
[323188835,1713796245192,-644.85,0.00013698,2]
[323188836,1713796245204,-589.99,0.00013698,2]
[323188837,1713796245214,-936.87,0.00013698,2]
[323188838,1713796245223,-500.0,0.00013698,2]
[323188839,1713796245233,-1320.28,0.00013698,2]
[323188840,1713796245242,-903.84,0.00013698,2]
[323188841,1713796245251,-500.0,0.00013698,2]
[323188842,1713796245260,-555.08,0.00013698,2]
[323188843,1713796245269,-500.0,0.00013698,2]
[323188844,1713796245278,-500.0,0.00013698,2]
[323188845,1713796245288,-500.0,0.00013698,2]
[323188846,1713796245298,-410.93711743,0.00013698,2]
[323188847,1713796245307,-500.0,0.00013698,2]
[323188848,1713796245316,-500.0,0.00013698,2]
[323188849,1713796245327,-1222.41,0.00013698,2]
[323188850,1713796245336,-500.0,0.00013698,2]
[323188851,1713796245578,-921.2,0.00013698,2]
[323188852,1713796245588,-1281.38,0.00013698,2]
[323188853,1713796245598,-500.0,0.00013698,2]
[323188854,1713796245607,-4094.83,0.00013698,2]
[323188855,1713796245616,-500.0,0.00013698,2]
[323188856,1713796245626,-500.0,0.00013698,2]
[323188857,1713796245636,-500.0,0.00013698,2]
[323188858,1713796245645,-577.96,0.00013698,2]
[323188859,1713796245655,-500.0,0.00013698,2]
[323188860,1713796245664,-802.08,0.00013698,2]
[323188861,1713796245674,-635.02,0.00013698,2]
[323188862,1713796245683,-500.0,0.00013698,2]
[323188863,1713796245693,-885.51,0.00013698,2]
[323188864,1713796245702,-560.08,0.00013698,2]
[323188865,1713796245712,-500.0,0.00013698,2]
[323188866,1713796245722,-2335.36,0.00013698,2]
[323188867,1713796245731,-1987.74,0.00013698,2]
[323188868,1713796245741,-1523.25,0.00013698,2]
[323188869,1713796245750,-672.48,0.00013698,2]
[323188870,1713796245760,-707.39,0.00013698,2]
[323188871,1713796245770,-500.0,0.00013698,2]
[323188872,1713796245779,-500.0,0.00013698,2]
[323188873,1713796245788,-500.0,0.00013698,2]
[323188874,1713796245798,-500.0,0.00013698,2]
[323188875,1713796245807,-703.81,0.00013698,2]
[323188876,1713796245817,-500.0,0.00013698,2]
[323188877,1713796245828,-500.0,0.00013698,2]
[323188878,1713796245838,-500.0,0.00013698,2]
[323188879,1713796245847,-500.0,0.00013698,2]
[323188880,1713796245856,-990.06,0.00013698,2]
[323188881,1713796245865,-500.0,0.00013698,2]
[323188882,1713796245874,-1461.93,0.00013698,2]
[323188883,1713796245884,-2320.25,0.00013698,2]
[323188884,1713796245893,-2214.29,0.00013698,2]
[323188885,1713796245903,-544.23,0.00013698,2]
[323188886,1713796245913,-500.0,0.00013698,2]
[323188887,1713796245922,-500.0,0.00013698,2]
[323188888,1713796245932,-768.88,0.00013698,2]
[323188890,1713796245942,-535.42,0.00013698,2]
[323188892,1713796245951,-617.29,0.00013698,2]
[323188894,1713796245961,-1207.61,0.00013698,2]
[323188896,1713796245970,-646.32,0.00013698,2]
[323188897,1713796245979,-664.38,0.00013698,2]
[323188898,1713796245988,-500.0,0.00013698,2]
[323188899,1713796245998,-561.72,0.00013698,2]
[323188900,1713796246007,-500.0,0.00013698,2]
[323188901,1713796246016,-500.0,0.00013698,2]
[323188902,1713796246027,-500.0,0.00013698,2]
[323188903,1713796246036,-1956.87,0.00013698,2]
[323188904,1713796246046,-1188.26,0.00013698,2]
[323188905,1713796246055,-500.0,0.00013698,2]
[323188906,1713796246064,-500.0,0.00013698,2]
[323188907,1713796246076,-692.43,0.00013698,2]
[323188908,1713796246086,-500.0,0.00013698,2]
[323188909,1713796246096,-500.0,0.00013698,2]
[323188910,1713796246106,-500.0,0.00013698,2]
[323188912,1713796246115,-307.0455722,0.00013698,2]
[323188913,1713796246125,-840.22,0.00013698,2]
[323188914,1713796246135,-500.0,0.00013698,2]
[323188915,1713796246144,-500.0,0.00013698,2]
[323188916,1713796246154,-1080.07,0.00013698,2]
[323188917,1713796246163,-738.64,0.00013698,2]
[323188918,1713796246173,-514.56,0.00013698,2]
[323188919,1713796246182,-500.0,0.00013698,2]
[323188920,1713796246192,-1091.02,0.00013698,2]
[323188921,1713796246204,-3256.14,0.00013698,2]
[323188922,1713796246214,-872.71,0.00013698,2]
[323188923,1713796246224,-566.78,0.00013698,2]
[323188924,1713796246234,-1106.97,0.00013698,2]
[323188925,1713796246243,-500.0,0.00013698,2]
[323188926,1713796246253,-500.0,0.00013698,2]
[323188927,1713796246263,-698.2,0.00013698,2]
[323188928,1713796246274,-792.14,0.00013698,2]
[323188929,1713796246284,-535.89,0.00013698,2]
[323188930,1713796246294,-533.31,0.00013698,2]
[323188931,1713796246303,-653.45,0.00013698,2]
[323188932,1713796246313,-500.0,0.00013698,2]
[323188933,1713796246325,-1525.76,0.00013698,2]
[323188934,1713796246334,-800.95,0.00013698,2]
[323188935,1713796246344,-1997.71,0.00013698,2]
[323188936,1713796246353,-500.0,0.00013698,2]
[323188937,1713796246363,-777.71,0.00013698,2]
[323188938,1713796246374,-797.4,0.00013698,2]
[323188939,1713796246383,-500.0,0.00013698,2]
[323188940,1713796246393,-500.0,0.00013698,2]
[323188941,1713796246402,-500.0,0.00013698,2]
[323188942,1713796246411,-2575.09,0.00013698,2]
[323188943,1713796246421,-248.43368022,0.00013698,2]
[323188944,1713796246431,-569.64,0.00013698,2]
[323188945,1713796246440,-651.72,0.00013698,2]
[323188946,1713796246450,-500.0,0.00013698,2]
[323188947,1713796246459,-500.0,0.00013698,2]
[323188948,1713796246469,-755.7,0.00013698,2]
[323188949,1713796246478,-1383.32,0.00013698,2]
[323188950,1713796246489,-643.88,0.00013698,2]
[323188951,1713796246499,-1558.42,0.00013698,2]
[323188952,1713796246508,-500.0,0.00013698,2]
[323188953,1713796246518,-500.0,0.00013698,2]
[323188954,1713796246528,-500.0,0.00013698,2]
[323188955,1713796246537,-736.2,0.00013698,2]